[Event "Ciutat Barcelona CAT-ARG 2018"]
[Site "Barcelona"]
[Date "2018.10.08"]
[Round "1"]
[White "Pichot, Alan"]
[Black "Asis Gargatagli, Hipolito"]
[Result "*"]
[ECO "C70"]
[WhiteElo "2556"]
[BlackElo "2526"]
[Annotator "RC"]
[PlyCount "28"]
[EventDate "2018.10.08"]
[EventCountry "ESP"]
[SourceTitle "playchess.com"]
[Source "ChessBase"]
[SourceQuality "1"]
[TimeControl "5400+30"]

1. e4 {[%emt 0:00:00]} e5 {[%emt 0:00:00]} 2. Nf3 {[%emt 0:00:00]} Nc6 {[%emt 0:00:00]} 3. Bb5 {[%emt 0:00:00]} a6 {[%emt 0:00:00]} 4. Ba4 {[%emt 0:00:00]} Nf6 {[%emt 0:00:09]} 5. d3 {[%emt 0:00:05]} Bc5 {[%emt 0:00:23]} 6. Nc3 {[%emt 0:00:43]} d6 {[%emt 0:00:24]} 7. Nd5 {[%emt 0:03:37]} Nxd5 {[%emt 0:07:24]} 8. exd5 {[%emt 0:00:28]} b5 {[%emt 0:00:05]} 9. Bb3 {[%emt 0:08:15]} Na5 {[%emt 0:01:21]} 10. Bg5 {[%emt 0:02:43]} f6 {[%emt 0:02:38]} 11. Be3 {[%emt 0:01:52]} Bg4 {[%emt 0:04:11]} 12. Qd2 {[%emt 0:11:52]} Nxb3 {[%emt 0:09:26]} 13. axb3 {[%emt 0:00:06]} Bxf3 {[%emt 0:01:51]} 14. gxf3 {[%emt 0:00:05]} O-O {[%emt 0:00:43]} *

[Event "Ciutat Barcelona CAT-ARG 2018"]
[Site "Barcelona"]
[Date "2018.10.08"]
[Round "1"]
[White "Diaz Camallonga, Carles"]
[Black "Krysa, Leandro"]
[Result "*"]
[ECO "E71"]
[WhiteElo "2444"]
[BlackElo "2503"]
[Annotator "RC"]
[PlyCount "28"]
[EventDate "2018.10.08"]
[EventCountry "ESP"]
[SourceTitle "playchess.com"]
[Source "ChessBase"]
[SourceQuality "1"]
[TimeControl "5400+30"]

1. d4 {[%emt 0:00:00]} Nf6 {[%emt 0:00:00]} 2. c4 {[%emt 0:00:00]} g6 {[%emt 0:00:00]} 3. Nc3 {[%emt 0:00:00]} Bg7 {[%emt 0:00:00]} 4. e4 {[%emt 0:00:00]} d6 {[%emt 0:00:00]} 5. h3 {[%emt 0:00:00]} O-O {[%emt 0:00:00]} 6. Be3 {[%emt 0:00:05]} Nbd7 {[%emt 0:03:08]} 7. Nf3 {[%emt 0:00:53]} e5 {[%emt 0:00:26]} 8. d5 {[%emt 0:00:31]} Nc5 {[%emt 0:00:33]} 9. Nd2 {[%emt 0:01:00]} a5 {[%emt 0:00:12]} 10. g4 {[%emt 0:05:40]} c6 {[%emt 0:01:28]} 11. Be2 {[%emt 0:06:13]} a4 {[%emt 0:01:08]} 12. g5 {[%emt 0:04:10]} Nfd7 {[%emt 0:00:05]} 13. h4 {[%emt 0:02:58]} Qa5 {[%emt 0:06:10]} 14. Qb1 {[%emt 0:04:29]} f5 {[%emt 0:03:53]} *

[Event "Ciutat Barcelona CAT-ARG 2018"]
[Site "Barcelona"]
[Date "2018.10.14"]
[Round "10"]
[White "Perez Ponsa, Federico"]
[Black "Asis Gargatagli, Hipolito"]
[Result "1-0"]
[ECO "B90"]
[WhiteElo "2554"]
[BlackElo "2526"]
[Annotator "RC"]
[PlyCount "181"]
[EventDate "2018.10.08"]
[EventCountry "ESP"]
[SourceTitle "playchess.com"]
[Source "ChessBase"]
[SourceQuality "1"]
[TimeControl "900+5"]

1. e4 {[%emt 0:00:00]} c5 {[%emt 0:00:07]} 2. Nf3 {[%emt 0:00:00]} d6 {[%emt 0:00:02]} 3. d4 {[%emt 0:00:09]} cxd4 {[%emt 0:00:02]} 4. Nxd4 {[%emt 0:00:01]} Nf6 {[%emt 0:00:02]} 5. Nc3 {[%emt 0:00:01]} a6 {[%emt 0:00:02]} 6. a3 {[%emt 0:00:02]} Nc6 {[%emt 0:00:50]} 7. Be2 {[%emt 0:00:07]} g6 {[%emt 0:00:55]} 8. Be3 {[%emt 0:00:03]} Bg7 {[%emt 0:00:05]} 9. Qd2 {[%emt 0:00:02]} O-O {[%emt 0:00:11]} 10. O-O-O Nxd4 {[%emt 0:02:20]} 11. Bxd4 {[%emt 0:00:04]} b5 {[%emt 0:00:02]} 12. h4 {[%emt 0:02:36]} Bb7 {[%emt 0:00:29]} 13. f3 {[%emt 0:00:06]} Rc8 {[%emt 0:00:19]} 14. h5 {[%emt 0:00:22]} e5 15. Be3 {[%emt 0:00:11]} Nxh5 {[%emt 0:00:25]} 16. Qxd6 Qxd6 {[%emt 0:01:48]} 17. Rxd6 {[%emt 0:01:14]} Ng3 {[%emt 0:00:03]} 18. Re1 {[%emt 0:00:09]} f5 {[%emt 0:00:17]} 19. Bd3 {[%emt 0:00:09]} fxe4 20. fxe4 {[%emt 0:00:21]} Rf7 {[%emt 0:00:34]} 21. Re6 {[%emt 0:01:54]} Rd7 {[%emt 0:00:27]} 22. Kb1 Kf7 {[%emt 0:00:41]} 23. Rb6 {[%emt 0:00:12]} Rc6 {[%emt 0:00:48]} 24. a4 {[%emt 0:00:09]} Rxb6 {[%emt 0:00:16]} 25. Bxb6 bxa4 {[%emt 0:00:51]} 26. Nxa4 {[%emt 0:00:12]} Bf8 {[%emt 0:00:12]} 27. Bc5 {[%emt 0:01:25]} Rc7 {[%emt 0:01:17]} 28. b4 {[%emt 0:02:24]} Bc8 {[%emt 0:02:52]} 29. Re3 {[%emt 0:00:26]} Nh5 {[%emt 0:00:02]} 30. Rf3+ {[%emt 0:00:06]} Nf4 {[%emt 0:00:01]} 31. g3 {[%emt 0:00:11]} g5 {[%emt 0:00:01]} 32. gxf4 {[%emt 0:00:58]} exf4 {[%emt 0:00:02]} 33. Bxf8 {[%emt 0:00:23]} Kxf8 {[%emt 0:00:02]} 34. c4 {[%emt 0:00:10]} Rf7 {[%emt 0:00:05]} 35. c5 {[%emt 0:00:37]} g4 {[%emt 0:00:06]} 36. Rf1 {[%emt 0:00:01]} g3 {[%emt 0:00:04]} 37. Be2 {[%emt 0:00:11]} Bh3 {[%emt 0:00:37]} 38. Rg1 {[%emt 0:01:28]} f3 {[%emt 0:00:03]} 39. Bxf3 {[%emt 0:00:22]} Rxf3 {[%emt 0:00:01]} 40. Kc2 {[%emt 0:00:01]} Bd7 {[%emt 0:00:40]} 41. Nc3 {[%emt 0:00:20]} h5 {[%emt 0:00:04]} 42. Kd2 {[%emt 0:00:20]} h4 {[%emt 0:00:09]} 43. Ne2 {[%emt 0:00:02]} Bb5 {[%emt 0:00:17]} 44. c6 {[%emt 0:00:09]} Rf2 {[%emt 0:00:12]} 45. c7 {[%emt 0:00:07]} Bd7 {[%emt 0:00:05]} 46. Ke3 {[%emt 0:00:05]} Rf7 {[%emt 0:00:02]} 47. Rh1 {[%emt 0:00:22]} h3 {[%emt 0:00:12]} 48. Nxg3 {[%emt 0:00:03]} Bc8 {[%emt 0:00:01]} 49. Rc1 {[%emt 0:00:29]} h2 {[%emt 0:00:01]} 50. Rh1 {[%emt 0:00:16]} Rh7 {[%emt 0:00:16]} 51. Nf1 {[%emt 0:00:05]} Rxc7 {[%emt 0:00:02]} 52. Rxh2 {[%emt 0:00:04]} Bb7 {[%emt 0:00:10]} 53. Nd2 {[%emt 0:00:07]} Rc3+ {[%emt 0:00:05]} 54. Kd4 {[%emt 0:00:01]} Rc2 {[%emt 0:00:01]} 55. e5 {[%emt 0:00:10]} Bc8 {[%emt 0:00:06]} 56. Rf2+ {[%emt 0:00:06]} Ke7 {[%emt 0:00:01]} 57. Kd3 {[%emt 0:00:01]} Rb2 {[%emt 0:00:02]} 58. Kc3 {[%emt 0:00:01]} Ra2 {[%emt 0:00:01]} 59. Rh2 {[%emt 0:00:06]} Bf5 {[%emt 0:00:02]} 60. Rf2 {[%emt 0:00:08]} Ke6 {[%emt 0:00:04]} 61. Re2 {[%emt 0:00:04]} Bg6 {[%emt 0:00:05]} 62. Rg2 {[%emt 0:00:07]} Bf5 63. Rh2 {[%emt 0:00:06]} Bg6 {[%emt 0:00:09]} 64. Rg2 {[%emt 0:00:07]} Bf5 {[%emt 0:00:02]} 65. Rf2 {[%emt 0:00:00]} Rc2+ {[%emt 0:00:06]} 66. Kd4 {[%emt 0:00:05]} Rb2 {[%emt 0:00:04]} 67. Kc3 {[%emt 0:00:07]} Rc2+ {[%emt 0:00:01]} 68. Kd4 {[%emt 0:00:00]} Rb2 69. Rh2 {[%emt 0:00:09]} Rxb4+ {[%emt 0:00:06]} 70. Nc4 Rxc4+ 71. Kxc4 {[%emt 0:00:06]} Kxe5 {[%emt 0:00:06]} 72. Kc5 {[%emt 0:00:03]} Bd3 {[%emt 0:00:10]} 73. Rh5+ {[%emt 0:00:12]} Kf6 {[%emt 0:00:12]} 74. Kd4 {[%emt 0:00:06]} Bg6 {[%emt 0:00:02]} 75. Ra5 {[%emt 0:00:03]} Kg7 {[%emt 0:00:01]} 76. Rxa6 {[%emt 0:00:01]} Bf7 {[%emt 0:00:04]} 77. Ke5 {[%emt 0:00:01]} Bg8 {[%emt 0:00:03]} 78. Ra7+ {[%emt 0:00:02]} Kh8 {[%emt 0:00:03]} 79. Kf6 {[%emt 0:00:01]} Bh7 {[%emt 0:00:01]} 80. Ra3 {[%emt 0:00:03]} Bg8 {[%emt 0:00:03]} 81. Rh3+ {[%emt 0:00:02]} Bh7 {[%emt 0:00:01]} 82. Rh1 {[%emt 0:00:03]} Kg8 {[%emt 0:00:02]} 83. Rc1 {[%emt 0:00:02]} Kh8 {[%emt 0:00:02]} 84. Rc8+ {[%emt 0:00:00]} Bg8 {[%emt 0:00:00]} 85. Rc7 {[%emt 0:00:06]} Bd5 {[%emt 0:00:14]} 86. Rg7 {[%emt 0:00:00]} Bg8 {[%emt 0:00:02]} 87. Rg5 {[%emt 0:00:06]} Be6 {[%emt 0:00:11]} 88. Kg6 {[%emt 0:00:07]} Kg8 {[%emt 0:00:02]} 89. Re5 {[%emt 0:00:01]} Bf7+ {[%emt 0:00:06]} 90. Kf6 {[%emt 0:00:04]} Kf8 {[%emt 0:00:01]} 91. Rb5 1-0

[Event "Ciutat Barcelona CAT-ARG 2018"]
[Site "Barcelona"]
[Date "2018.10.14"]
[Round "11"]
[White "Perez Ponsa, Federico"]
[Black "Alonso Rosell, Alvar"]
[Result "1/2-1/2"]
[ECO "C48"]
[WhiteElo "2554"]
[BlackElo "2526"]
[Annotator "ChessBase"]
[PlyCount "99"]
[EventDate "2018.10.08"]
[EventCountry "ESP"]
[SourceTitle "playchess.com"]
[Source "ChessBase"]
[SourceQuality "1"]
[TimeControl "900+5"]

1. e4 {[%emt 0:00:00]} e5 {[%emt 0:00:00]} 2. Nf3 {[%emt 0:00:00]} Nc6 {[%emt 0:00:00]} 3. Nc3 {[%emt 0:00:03]} Nf6 {[%emt 0:00:19]} 4. Bb5 {[%emt 0:00:02]} Bd6 {[%emt 0:00:44]} 5. d3 {[%emt 0:00:15]} a6 {[%emt 0:01:47]} 6. Ba4 {[%emt 0:00:14]} O-O 7. a3 b5 {[%emt 0:01:59]} 8. Bb3 {[%emt 0:00:15]} Be7 {[%emt 0:00:17]} 9. O-O {[%emt 0:01:53]} d6 10. Nd5 {[%emt 0:01:46]} Nxd5 {[%emt 0:00:16]} 11. Bxd5 {[%emt 0:00:02]} Bd7 12. Be3 {[%emt 0:01:28]} Rb8 {[%emt 0:00:46]} 13. b4 {[%emt 0:00:04]} Bf6 {[%emt 0:00:22]} 14. c3 {[%emt 0:00:48]} Qe8 {[%emt 0:01:29]} 15. a4 bxa4 16. Rxa4 {[%emt 0:00:52]} Ne7 {[%emt 0:01:35]} 17. Rxa6 {[%emt 0:00:21]} Nxd5 {[%emt 0:02:01]} 18. exd5 Bb5 {[%emt 0:02:37]} 19. Ra7 {[%emt 0:00:07]} e4 {[%emt 0:00:03]} 20. Nd4 {[%emt 0:00:01]} Bxd3 {[%emt 0:00:03]} 21. Re1 {[%emt 0:00:03]} Rc8 22. Qd2 {[%emt 0:01:18]} Bxd4 {[%emt 0:01:31]} 23. Bxd4 f6 {[%emt 0:00:13]} 24. Qf4 {[%emt 0:01:12]} Qf7 {[%emt 0:00:11]} 25. Ra5 {[%emt 0:01:04]} Ra8 26. Rea1 Qxd5 {[%emt 0:00:10]} 27. h4 {[%emt 0:00:06]} Rxa5 {[%emt 0:00:14]} 28. Rxa5 Qc4 {[%emt 0:00:19]} 29. h5 {[%emt 0:00:12]} h6 {[%emt 0:00:04]} 30. Ra7 {[%emt 0:00:12]} Qc6 {[%emt 0:00:11]} 31. Qg4 {[%emt 0:00:12]} Bc4 {[%emt 0:00:05]} 32. Qf5 {[%emt 0:00:38]} Bf7 33. b5 {[%emt 0:00:40]} Qc4 {[%emt 0:00:17]} 34. Qd7 {[%emt 0:00:02]} Qd3 {[%emt 0:00:11]} 35. Qg4 {[%emt 0:00:35]} Qb1+ {[%emt 0:00:02]} 36. Kh2 {[%emt 0:00:03]} Qxb5 37. Rxc7 {[%emt 0:00:33]} Qxh5+ {[%emt 0:00:09]} 38. Qxh5 {[%emt 0:00:02]} Bxh5 {[%emt 0:00:01]} 39. Rd7 {[%emt 0:00:01]} Rc8 {[%emt 0:00:12]} 40. Rxd6 {[%emt 0:00:05]} Bg4 41. Kg3 {[%emt 0:00:08]} h5 {[%emt 0:00:07]} 42. Kf4 {[%emt 0:00:02]} Kf7 {[%emt 0:00:08]} 43. Kxe4 {[%emt 0:00:08]} Be6 44. Rb6 {[%emt 0:00:11]} Rc7 {[%emt 0:00:08]} 45. Rb5 {[%emt 0:00:10]} Bd7 {[%emt 0:00:06]} 46. Rxh5 {[%emt 0:00:12]} Bc6+ {[%emt 0:00:01]} 47. Ke3 {[%emt 0:00:03]} Bxg2 {[%emt 0:00:02]} 48. Ra5 {[%emt 0:00:02]} Bf1 49. Ra7 Rxa7 50. Bxa7 1/2-1/2

[Event "Ciutat Barcelona CAT-ARG 2018"]
[Site "Barcelona"]
[Date "2018.10.14"]
[Round "11"]
[White "Asis Gargatagli, Hipolito"]
[Black "Pichot, Alan"]
[Result "1-0"]
[ECO "B40"]
[WhiteElo "2526"]
[BlackElo "2556"]
[Annotator "ChessBase"]
[PlyCount "97"]
[EventDate "2018.10.08"]
[EventCountry "ESP"]
[SourceTitle "playchess.com"]
[Source "ChessBase"]
[SourceQuality "1"]
[TimeControl "900+5"]

1. e4 {[%emt 0:00:00]} c5 {[%emt 0:00:00]} 2. Nf3 {[%emt 0:00:01]} e6 {[%emt 0:00:06]} 3. b3 {[%emt 0:00:23]} b6 {[%emt 0:00:13]} 4. Bd3 {[%emt 0:00:25]} Bb7 {[%emt 0:00:08]} 5. O-O {[%emt 0:00:04]} Nf6 {[%emt 0:00:34]} 6. e5 {[%emt 0:00:16]} Nd5 {[%emt 0:00:10]} 7. Be4 {[%emt 0:00:04]} Ne3 {[%emt 0:01:01]} 8. Bxb7 {[%emt 0:00:16]} Nxd1 {[%emt 0:00:02]} 9. Bxa8 {[%emt 0:00:02]} f5 10. Rxd1 {[%emt 0:02:36]} Na6 {[%emt 0:05:14]} 11. Bb7 {[%emt 0:00:03]} Nb4 {[%emt 0:00:01]} 12. Ne1 {[%emt 0:00:09]} Qc7 {[%emt 0:00:18]} 13. Bf3 {[%emt 0:00:04]} Qxe5 {[%emt 0:00:02]} 14. c3 Nc6 {[%emt 0:01:21]} 15. d4 {[%emt 0:02:35]} cxd4 {[%emt 0:00:03]} 16. Bb2 Bd6 {[%emt 0:02:55]} 17. g3 {[%emt 0:00:08]} O-O {[%emt 0:00:02]} 18. cxd4 {[%emt 0:00:13]} Qf6 {[%emt 0:00:01]} 19. Nd2 {[%emt 0:00:29]} Bb4 {[%emt 0:01:26]} 20. a3 {[%emt 0:01:32]} Bxd2 {[%emt 0:00:37]} 21. Rxd2 {[%emt 0:00:02]} d5 {[%emt 0:00:07]} 22. b4 f4 23. Bg2 {[%emt 0:00:54]} Nd8 {[%emt 0:00:44]} 24. Rc1 {[%emt 0:00:18]} Nf7 {[%emt 0:00:13]} 25. Nf3 {[%emt 0:00:09]} Nd6 {[%emt 0:00:13]} 26. Ne5 {[%emt 0:00:13]} Ne4 {[%emt 0:00:37]} 27. Re2 {[%emt 0:00:28]} Qh6 28. Rce1 {[%emt 0:00:52]} Ng5 {[%emt 0:00:10]} 29. Bc1 {[%emt 0:00:11]} Nh3+ {[%emt 0:00:15]} 30. Bxh3 {[%emt 0:00:09]} Qxh3 {[%emt 0:00:01]} 31. Bxf4 {[%emt 0:00:03]} h6 {[%emt 0:00:16]} 32. f3 {[%emt 0:00:42]} Qf5 33. Rc1 {[%emt 0:00:09]} h5 {[%emt 0:00:40]} 34. h4 {[%emt 0:00:16]} Qh3 {[%emt 0:00:06]} 35. Rh2 {[%emt 0:00:34]} Qf5 {[%emt 0:00:01]} 36. Bg5 {[%emt 0:00:14]} a5 {[%emt 0:00:02]} 37. b5 {[%emt 0:00:03]} Kh7 {[%emt 0:00:07]} 38. Kg2 {[%emt 0:00:14]} Kg8 {[%emt 0:00:07]} 39. Rhh1 {[%emt 0:00:03]} Re8 {[%emt 0:00:13]} 40. Rhe1 Qf8 {[%emt 0:00:02]} 41. Re3 {[%emt 0:00:13]} Kh7 42. g4 {[%emt 0:00:29]} Rc8 {[%emt 0:00:13]} 43. Rc6 {[%emt 0:00:06]} Re8 {[%emt 0:00:07]} 44. Rec3 {[%emt 0:00:18]} hxg4 {[%emt 0:00:05]} 45. fxg4 {[%emt 0:00:01]} a4 {[%emt 0:00:05]} 46. Rf3 {[%emt 0:00:03]} Qh8 {[%emt 0:00:04]} 47. h5 {[%emt 0:00:15]} Rc8 {[%emt 0:00:02]} 48. Ng6 {[%emt 0:00:08]} Qe8 {[%emt 0:00:09]} 49. Rf8 {[%emt 0:00:14]} 1-0

[Event "Ciutat Barcelona CAT-ARG 2018"]
[Site "Barcelona"]
[Date "2018.10.14"]
[Round "11"]
[White "Krysa, Leandro"]
[Black "Diaz Camallonga, Carles"]
[Result "1-0"]
[ECO "D10"]
[WhiteElo "2503"]
[BlackElo "2444"]
[Annotator "ChessBase"]
[PlyCount "145"]
[EventDate "2018.10.08"]
[EventCountry "ESP"]
[SourceTitle "playchess.com"]
[Source "ChessBase"]
[SourceQuality "1"]
[TimeControl "900+5"]

1. d4 {[%emt 0:00:00]} d5 {[%emt 0:00:00]} 2. c4 {[%emt 0:00:00]} c6 {[%emt 0:00:00]} 3. cxd5 {[%emt 0:00:00]} cxd5 {[%emt 0:00:00]} 4. Bg5 {[%emt 0:00:01]} Nc6 {[%emt 0:00:00]} 5. Nc3 {[%emt 0:00:02]} Bf5 {[%emt 0:00:28]} 6. e3 {[%emt 0:00:24]} f6 {[%emt 0:00:04]} 7. Bh4 {[%emt 0:00:10]} e6 {[%emt 0:00:04]} 8. Qb3 {[%emt 0:00:38]} Qd7 {[%emt 0:00:05]} 9. Nf3 {[%emt 0:00:38]} Rc8 {[%emt 0:01:01]} 10. Bb5 {[%emt 0:01:28]} Bd6 {[%emt 0:00:38]} 11. O-O {[%emt 0:00:17]} Nge7 {[%emt 0:00:28]} 12. Rfc1 {[%emt 0:00:13]} g5 {[%emt 0:01:18]} 13. Bg3 {[%emt 0:00:04]} h5 {[%emt 0:00:02]} 14. Na4 {[%emt 0:00:18]} h4 {[%emt 0:00:40]} 15. Bxd6 {[%emt 0:00:43]} Qxd6 {[%emt 0:00:01]} 16. Bf1 {[%emt 0:03:49]} b6 {[%emt 0:00:33]} 17. Nc3 {[%emt 0:00:11]} g4 {[%emt 0:01:07]} 18. Ne1 {[%emt 0:00:40]} Kf7 {[%emt 0:00:17]} 19. Nb5 {[%emt 0:00:43]} Qd7 {[%emt 0:00:59]} 20. Qa3 {[%emt 0:00:01]} Kg7 {[%emt 0:00:01]} 21. Nd6 {[%emt 0:00:32]} Rc7 {[%emt 0:00:11]} 22. Rc3 {[%emt 0:00:48]} Na5 {[%emt 0:00:40]} 23. Rac1 {[%emt 0:01:08]} Rxc3 {[%emt 0:00:07]} 24. Rxc3 {[%emt 0:00:01]} g3 {[%emt 0:00:09]} 25. fxg3 {[%emt 0:00:56]} hxg3 {[%emt 0:00:01]} 26. hxg3 {[%emt 0:00:15]} Rd8 {[%emt 0:00:11]} 27. Nb5 {[%emt 0:01:00]} Rc8 {[%emt 0:00:58]} 28. Qd6 {[%emt 0:00:29]} Qxd6 {[%emt 0:00:19]} 29. Nxd6 {[%emt 0:00:02]} Rxc3 {[%emt 0:00:01]} 30. bxc3 {[%emt 0:00:00]} Bb1 {[%emt 0:00:02]} 31. a3 {[%emt 0:00:21]} Nf5 {[%emt 0:00:20]} 32. Nxf5+ {[%emt 0:00:12]} Bxf5 {[%emt 0:00:02]} 33. Kf2 {[%emt 0:00:05]} Nb3 {[%emt 0:00:08]} 34. c4 {[%emt 0:00:29]} Nd2 {[%emt 0:00:14]} 35. cxd5 {[%emt 0:00:13]} exd5 {[%emt 0:00:01]} 36. Bd3 {[%emt 0:00:30]} Bxd3 {[%emt 0:00:47]} 37. Nxd3 {[%emt 0:00:01]} Nb1 {[%emt 0:00:01]} 38. a4 {[%emt 0:00:06]} Nc3 {[%emt 0:00:02]} 39. Nb2 {[%emt 0:00:09]} Kg6 {[%emt 0:00:01]} 40. Kf3 {[%emt 0:00:10]} Kg5 {[%emt 0:00:08]} 41. g4 {[%emt 0:00:03]} a5 {[%emt 0:00:05]} 42. Kg3 {[%emt 0:00:05]} b5 {[%emt 0:03:55]} 43. axb5 {[%emt 0:00:01]} a4 {[%emt 0:00:01]} 44. b6 {[%emt 0:00:01]} a3 {[%emt 0:00:01]} 45. Nd3 {[%emt 0:00:00]} Ne4+ {[%emt 0:00:21]} 46. Kh3 {[%emt 0:00:31]} a2 {[%emt 0:01:32]} 47. b7 {[%emt 0:00:01]} a1=Q {[%emt 0:00:02]} 48. b8=Q {[%emt 0:00:01]} Qh1+ {[%emt 0:00:05]} 49. Qh2 {[%emt 0:00:01]} Qd1 {[%emt 0:00:37]} 50. Qf4+ {[%emt 0:00:17]} Kg6 {[%emt 0:00:01]} 51. Nf2 {[%emt 0:00:19]} Nxf2+ {[%emt 0:00:02]} 52. Qxf2 {[%emt 0:00:01]} Kg7 {[%emt 0:00:09]} 53. Kg3 {[%emt 0:00:02]} Qd3 {[%emt 0:00:09]} 54. Qf3 {[%emt 0:00:02]} Qd2 {[%emt 0:00:07]} 55. g5 {[%emt 0:00:11]} fxg5 {[%emt 0:00:03]} 56. Kg4 {[%emt 0:00:01]} Qd3 {[%emt 0:00:14]} 57. Kxg5 {[%emt 0:00:03]} Qg6+ {[%emt 0:00:01]} 58. Kh4 {[%emt 0:00:01]} Qc6 {[%emt 0:00:06]} 59. Qf5 {[%emt 0:00:15]} Qh6+ {[%emt 0:00:05]} 60. Qh5 {[%emt 0:00:03]} Qc6 {[%emt 0:00:01]} 61. Qg5+ {[%emt 0:00:06]} Kh7 {[%emt 0:00:02]} 62. Qf5+ {[%emt 0:00:04]} Kg7 {[%emt 0:00:01]} 63. Qe5+ {[%emt 0:00:01]} Kh7 {[%emt 0:00:05]} 64. g4 {[%emt 0:00:02]} Qb7 {[%emt 0:00:09]} 65. Kg5 {[%emt 0:00:05]} Qc6 {[%emt 0:00:03]} 66. Qe7+ {[%emt 0:00:04]} Kg8 {[%emt 0:00:02]} 67. Qf6 {[%emt 0:00:03]} Qd7 {[%emt 0:00:03]} 68. Qg6+ {[%emt 0:00:11]} Kh8 {[%emt 0:00:02]} 69. Qf5 {[%emt 0:00:05]} Qb7 {[%emt 0:00:02]} 70. Kf6 {[%emt 0:00:09]} Qf7+ {[%emt 0:00:26]} 71. Ke5 {[%emt 0:00:06]} Qb7 {[%emt 0:00:02]} 72. Kd6 {[%emt 0:00:07]} Kg7 {[%emt 0:00:09]} 73. Qd7+ {[%emt 0:00:04]} 1-0

[Event "Ciutat Barcelona CAT-ARG 2018"]
[Site "Barcelona"]
[Date "2018.10.14"]
[Round "12"]
[White "Peralta, Fernando"]
[Black "Asis Gargatagli, Hipolito"]
[Result "1/2-1/2"]
[ECO "D86"]
[WhiteElo "2582"]
[BlackElo "2526"]
[Annotator "ChessBase"]
[PlyCount "59"]
[EventDate "2018.10.08"]
[EventCountry "ESP"]
[SourceTitle "playchess.com"]
[Source "ChessBase"]
[SourceQuality "1"]
[TimeControl "900+5"]

1. d4 {[%emt 0:00:00]} Nf6 {[%emt 0:00:00]} 2. c4 {[%emt 0:00:00]} g6 {[%emt 0:00:00]} 3. Nc3 {[%emt 0:00:11]} d5 {[%emt 0:00:02]} 4. cxd5 {[%emt 0:00:05]} Nxd5 {[%emt 0:00:01]} 5. e4 {[%emt 0:00:02]} Nxc3 {[%emt 0:00:02]} 6. bxc3 {[%emt 0:00:02]} Bg7 {[%emt 0:00:02]} 7. Bc4 {[%emt 0:00:14]} c5 {[%emt 0:00:04]} 8. Ne2 {[%emt 0:00:02]} Nc6 {[%emt 0:00:02]} 9. Be3 {[%emt 0:00:02]} O-O {[%emt 0:00:08]} 10. O-O {[%emt 0:00:02]} Bg4 {[%emt 0:00:02]} 11. f3 {[%emt 0:00:10]} Bd7 {[%emt 0:00:02]} 12. Rb1 {[%emt 0:00:32]} Rc8 {[%emt 0:00:06]} 13. Bd3 {[%emt 0:00:30]} Qc7 {[%emt 0:00:03]} 14. d5 {[%emt 0:01:57]} Ne5 {[%emt 0:00:17]} 15. c4 {[%emt 0:00:23]} b5 {[%emt 0:02:20]} 16. cxb5 {[%emt 0:00:15]} c4 {[%emt 0:00:03]} 17. Bc2 {[%emt 0:00:14]} e6 {[%emt 0:02:05]} 18. d6 {[%emt 0:02:16]} Qa5 {[%emt 0:00:16]} 19. Bd4 {[%emt 0:02:49]} Bxb5 {[%emt 0:01:00]} 20. Bc3 {[%emt 0:00:05]} Qa6 {[%emt 0:01:35]} 21. a4 {[%emt 0:00:18]} Bd7 {[%emt 0:00:12]} 22. Qd2 {[%emt 0:01:48]} Nd3 {[%emt 0:00:18]} 23. Bxg7 {[%emt 0:00:05]} Kxg7 {[%emt 0:00:03]} 24. Qc3+ {[%emt 0:01:37]} e5 {[%emt 0:00:06]} 25. Qa3 {[%emt 0:01:22]} Rc6 {[%emt 0:00:43]} 26. Rfd1 {[%emt 0:00:23]} Rxd6 {[%emt 0:00:18]} 27. Nc1 {[%emt 0:00:01]} Rd4 {[%emt 0:01:07]} 28. Ne2 {[%emt 0:00:06]} Rd6 {[%emt 0:00:50]} 29. Nc1 {[%emt 0:00:05]} Rd4 {[%emt 0:00:47]} 30. Ne2 {[%emt 0:00:02]} 1/2-1/2

[Event "Ciutat Barcelona CAT-ARG 2018"]
[Site "Barcelona"]
[Date "2018.10.14"]
[Round "12"]
[White "Lopez Martinez, Josep Manuel"]
[Black "Krysa, Leandro"]
[Result "0-1"]
[ECO "D71"]
[WhiteElo "2581"]
[BlackElo "2503"]
[Annotator "ChessBase"]
[PlyCount "120"]
[EventDate "2018.10.08"]
[EventCountry "ESP"]
[SourceTitle "playchess.com"]
[Source "ChessBase"]
[SourceQuality "1"]
[TimeControl "900+5"]

1. d4 {[%emt 0:00:00]} Nf6 {[%emt 0:00:00]} 2. c4 {[%emt 0:00:00]} g6 {[%emt 0:00:00]} 3. g3 {[%emt 0:00:24]} Bg7 {[%emt 0:00:05]} 4. Bg2 {[%emt 0:00:02]} d5 {[%emt 0:00:02]} 5. cxd5 {[%emt 0:00:16]} Nxd5 {[%emt 0:00:01]} 6. Nf3 {[%emt 0:00:06]} Nb6 {[%emt 0:00:02]} 7. O-O {[%emt 0:00:06]} Nc6 {[%emt 0:00:04]} 8. Nc3 {[%emt 0:00:08]} Nxd4 {[%emt 0:01:24]} 9. Nxd4 {[%emt 0:00:15]} Qxd4 {[%emt 0:00:22]} 10. Qxd4 {[%emt 0:02:12]} Bxd4 {[%emt 0:00:01]} 11. Nb5 {[%emt 0:00:02]} Be5 {[%emt 0:00:05]} 12. f4 {[%emt 0:00:50]} Bd6 {[%emt 0:00:07]} 13. Nxd6+ {[%emt 0:00:45]} exd6 {[%emt 0:00:46]} 14. e4 {[%emt 0:00:16]} Bd7 {[%emt 0:00:31]} 15. b3 {[%emt 0:00:06]} Bc6 {[%emt 0:00:23]} 16. Bb2 {[%emt 0:00:08]} O-O {[%emt 0:00:02]} 17. Rac1 {[%emt 0:00:14]} Rfe8 {[%emt 0:00:37]} 18. Rfe1 {[%emt 0:00:50]} Nd7 {[%emt 0:00:36]} 19. Bd4 {[%emt 0:01:15]} f6 {[%emt 0:01:47]} 20. b4 {[%emt 0:00:15]} a6 {[%emt 0:00:31]} 21. Re3 {[%emt 0:01:20]} Rac8 {[%emt 0:01:45]} 22. Rec3 {[%emt 0:00:09]} Kf7 {[%emt 0:00:42]} 23. Kf2 {[%emt 0:01:09]} h5 {[%emt 0:01:51]} 24. a4 {[%emt 0:00:35]} Bxe4 {[%emt 0:01:16]} 25. Rxc7 {[%emt 0:00:17]} Rxc7 {[%emt 0:00:14]} 26. Rxc7 {[%emt 0:00:02]} Bxg2 {[%emt 0:00:03]} 27. Kxg2 {[%emt 0:00:03]} Ke6 {[%emt 0:00:04]} 28. Rxb7 {[%emt 0:00:08]} Rb8 {[%emt 0:00:17]} 29. Rxb8 {[%emt 0:00:12]} Nxb8 {[%emt 0:00:02]} 30. Kf3 {[%emt 0:00:10]} f5 {[%emt 0:00:45]} 31. Ke2 {[%emt 0:00:17]} Kd5 {[%emt 0:00:08]} 32. Kd3 {[%emt 0:00:03]} Nc6 {[%emt 0:00:11]} 33. Bc3 {[%emt 0:00:02]} Nb8 {[%emt 0:00:40]} 34. Bd2 {[%emt 0:00:13]} Nd7 {[%emt 0:00:11]} 35. Be3 {[%emt 0:00:23]} Nf6 {[%emt 0:00:16]} 36. Bf2 {[%emt 0:00:43]} Ng4 {[%emt 0:00:14]} 37. Bg1 {[%emt 0:00:04]} Nf6 {[%emt 0:00:01]} 38. b5 {[%emt 0:01:16]} axb5 {[%emt 0:00:04]} 39. axb5 {[%emt 0:00:01]} Nd7 {[%emt 0:00:59]} 40. Kc3 {[%emt 0:00:06]} Ke4 {[%emt 0:00:22]} 41. Ba7 {[%emt 0:00:35]} d5 {[%emt 0:00:38]} 42. Bd4 {[%emt 0:00:24]} h4 {[%emt 0:00:00]} 43. gxh4 {[%emt 0:00:25]} Kxf4 {[%emt 0:00:01]} 44. b6 {[%emt 0:00:01]} Kg4 {[%emt 0:00:19]} 45. b7 {[%emt 0:00:03]} f4 {[%emt 0:00:06]} 46. Kb4 {[%emt 0:00:03]} Kf5 {[%emt 0:00:04]} 47. Kb5 {[%emt 0:00:03]} f3 {[%emt 0:00:02]} 48. Kc6 {[%emt 0:00:12]} Ke6 {[%emt 0:00:07]} 49. Kc7 {[%emt 0:00:06]} Ke7 {[%emt 0:00:03]} 50. h3 {[%emt 0:01:21]} Ke6 {[%emt 0:00:01]} 51. Bf2 {[%emt 0:00:16]} Ke7 {[%emt 0:00:02]} 52. Kc6 {[%emt 0:00:12]} Ke6 {[%emt 0:00:03]} 53. Ba7 {[%emt 0:00:05]} Ne5+ {[%emt 0:00:12]} 54. Kb5 {[%emt 0:00:05]} Nd7 {[%emt 0:00:01]} 55. Bf2 {[%emt 0:00:04]} Kd6 {[%emt 0:00:06]} 56. Bg3+ {[%emt 0:00:01]} Ke6 {[%emt 0:00:00]} 57. Bf2 {[%emt 0:00:16]} Kd6 {[%emt 0:00:01]} 58. Ka6 {[%emt 0:00:05]} Kc6 {[%emt 0:00:09]} 59. Ka7 {[%emt 0:00:05]} Kb5 {[%emt 0:00:02]} 60. Be1 {[%emt 0:00:08]} d4 {[%emt 0:00:04]} 0-1